[Event "Titled Tuesday Blitz August 16 Late 2022"]
[White "Deviprasath, Sharvesh"]
[Black "Carbone, Diego"]
[WhiteFideId "30938228"]
[BlackFideId "3002179"]
[WhiteElo "2102"]
[BlackElo "2199"]
[Result "1/2-1/2"]
[Round "10"]
[TimeControl "180+1"]
[Date "2022.08.18"]
[WhiteClock "0:00:00"]
[BlackClock "0:00:00"]

1. b3 {[%clk 0:00:00]}  Nf6 {[%clk 0:00:00]} 2. Bb2 {[%clk 0:00:00]}  d5 {[%clk 0:00:00]} 3. e3 {[%clk 0:00:00]}  c6 {[%clk 0:00:00]} 4. Nf3 {[%clk 0:00:00]}  Bg4 {[%clk 0:00:00]} 5. Be2 {[%clk 0:00:00]}  Nbd7 {[%clk 0:00:00]} 6. d3 {[%clk 0:00:00]}  e6 {[%clk 0:00:00]} 7. Nbd2 {[%clk 0:00:00]}  Bd6 {[%clk 0:00:00]} 8. h3 {[%clk 0:00:00]}  Bxf3 {[%clk 0:00:00]} 9. Bxf3 {[%clk 0:00:00]}  Qe7 {[%clk 0:00:00]} 10. Qe2 {[%clk 0:00:00]}  Ba3 {[%clk 0:00:00]} 11. Bxa3 {[%clk 0:00:00]}  Qxa3 {[%clk 0:00:00]} 12. e4 {[%clk 0:00:00]}  Ne5 {[%clk 0:00:00]} 13. exd5 {[%clk 0:00:00]}  Nxf3+ {[%clk 0:00:00]} 14. Nxf3 {[%clk 0:00:00]}  cxd5 {[%clk 0:00:00]} 15. c4 {[%clk 0:00:00]}  O-O {[%clk 0:00:00]} 16. O-O {[%clk 0:00:00]}  Rfd8 {[%clk 0:00:00]} 17. Rfe1 {[%clk 0:00:00]}  Rac8 {[%clk 0:00:00]} 18. Rab1 {[%clk 0:00:00]}  dxc4 {[%clk 0:00:00]} 19. dxc4 {[%clk 0:00:00]}  Qc5 {[%clk 0:00:00]} 20. Rbd1 {[%clk 0:00:00]}  h6 {[%clk 0:00:00]} 21. Rxd8+ {[%clk 0:00:00]}  Rxd8 {[%clk 0:00:00]} 22. Rd1 {[%clk 0:00:00]}  Rd6 {[%clk 0:00:00]} 23. Rxd6 {[%clk 0:00:00]}  Qxd6 {[%clk 0:00:00]} 24. Qd2 {[%clk 0:00:00]}  Qxd2 {[%clk 0:00:00]} 25. Nxd2 {[%clk 0:00:00]}  Kf8 {[%clk 0:00:00]} 26. f3 {[%clk 0:00:00]}  Ke7 {[%clk 0:00:00]} 27. Kf2 {[%clk 0:00:00]}  g5 {[%clk 0:00:00]} 28. Ke3 {[%clk 0:00:00]}  Kd6 {[%clk 0:00:00]} 29. f4 {[%clk 0:00:00]}  gxf4+ {[%clk 0:00:00]} 30. Kxf4 {[%clk 0:00:00]}  Nd7 {[%clk 0:00:00]} 31. b4 {[%clk 0:00:00]}  f5 {[%clk 0:00:00]} 32. Nf3 {[%clk 0:00:00]}  Ke7 {[%clk 0:00:00]} 33. Ne5 {[%clk 0:00:00]}  Nf6 {[%clk 0:00:00]} 34. a4 {[%clk 0:00:00]}  Nh5+ {[%clk 0:00:00]} 35. Ke3 {[%clk 0:00:00]}  Kf6 {[%clk 0:00:00]} 36. Nd7+ {[%clk 0:00:00]}  Ke7 {[%clk 0:00:00]} 37. Nc5 {[%clk 0:00:00]}  b6 {[%clk 0:00:00]} 38. Nd3 {[%clk 0:00:00]}  Kd6 {[%clk 0:00:00]} 39. Kd4 {[%clk 0:00:00]}  Ng3 {[%clk 0:00:00]} 40. c5+ {[%clk 0:00:00]}  bxc5+ {[%clk 0:00:00]} 41. bxc5+ {[%clk 0:00:00]}  Ke7 {[%clk 0:00:00]} 42. Ke5 {[%clk 0:00:00]}  Nf1 {[%clk 0:00:00]} 43. c6 {[%clk 0:00:00]}  Nd2 {[%clk 0:00:00]} 44. c7 {[%clk 0:00:00]}  Nc4+ {[%clk 0:00:00]} 45. Kd4 {[%clk 0:00:00]}  Nb6 {[%clk 0:00:00]} 46. a5 {[%clk 0:00:00]}  Nc8 {[%clk 0:00:00]} 47. Ke5 {[%clk 0:00:00]}  Kd7 {[%clk 0:00:00]} 48. Nc5+ {[%clk 0:00:00]}  Kxc7 {[%clk 0:00:00]} 49. Nxe6+ {[%clk 0:00:00]}  Kc6 {[%clk 0:00:00]} 50. Kxf5 {[%clk 0:00:00]}  Kb5 {[%clk 0:00:00]} 51. Kg6 {[%clk 0:00:00]}  Kxa5 {[%clk 0:00:00]} 52. Kxh6 {[%clk 0:00:00]}  Kb4 {[%clk 0:00:00]} 53. g4 {[%clk 0:00:00]}  a5 {[%clk 0:00:00]} 54. Nd4 {[%clk 0:00:00]}  Kc4 {[%clk 0:00:00]} 55. Nc2 {[%clk 0:00:00]}  Kb3 {[%clk 0:00:00]} 56. Nd4+ {[%clk 0:00:00]}  Kc4 {[%clk 0:00:00]} 57. Nc2 {[%clk 0:00:00]}  Kb3 {[%clk 0:00:00]} 58. Nd4+ {[%clk 0:00:00]}  Kc4 {[%clk 0:00:00]} 1/2-1/2


[Site "https://www.chess.com"]

[Event "Titled Tuesday Blitz August 16 Late 2022"]
[White "Fier, Alexandr"]
[Black "Aldokhin, Ivan"]
[WhiteFideId "2107139"]
[BlackFideId "24115720"]
[WhiteElo "2598"]
[BlackElo "2246"]
[Result "1-0"]
[Round "10"]
[TimeControl "180+1"]
[Date "2022.08.16"]
[WhiteClock "0:01:16"]
[BlackClock "0:00:03"]

1. d4 {[%clk 0:03:00]}  Nf6 {[%clk 0:02:59]} 2. Bg5 {[%clk 0:02:58]}  g6 {[%clk 0:02:59]} 3. Bxf6 {[%clk 0:02:58]}  exf6 {[%clk 0:02:59]} 4. e3 {[%clk 0:02:58]}  d5 {[%clk 0:02:59]} 5. g3 {[%clk 0:02:59]}  c6 {[%clk 0:02:59]} 6. Bg2 {[%clk 0:02:58]}  Bd6 {[%clk 0:02:58]} 7. Ne2 {[%clk 0:02:43]}  Nd7 {[%clk 0:02:57]} 8. Nd2 {[%clk 0:02:43]}  f5 {[%clk 0:02:46]} 9. c4 {[%clk 0:02:43]}  dxc4 {[%clk 0:02:32]} 10. Nxc4 {[%clk 0:02:43]}  Bb4+ {[%clk 0:02:18]} 11. Nc3 {[%clk 0:02:44]}  Nf6 {[%clk 0:02:18]} 12. Qb3 {[%clk 0:02:43]}  Bxc3+ {[%clk 0:01:55]} 13. Qxc3 {[%clk 0:02:41]}  O-O {[%clk 0:01:52]} 14. O-O {[%clk 0:02:39]}  Be6 {[%clk 0:01:52]} 15. Ne5 {[%clk 0:02:35]}  Bd5 {[%clk 0:01:51]} 16. a4 {[%clk 0:02:31]}  Ne4 {[%clk 0:01:41]} 17. Qb4 {[%clk 0:02:29]}  a5 {[%clk 0:01:22]} 18. Qxb7 {[%clk 0:02:17]}  Rb8 {[%clk 0:01:14]} 19. Qa6 {[%clk 0:02:17]}  Rxb2 {[%clk 0:00:58]} 20. Rac1 {[%clk 0:02:10]}  Qd6 {[%clk 0:00:55]} 21. Nxc6 {[%clk 0:02:03]}  Kg7 {[%clk 0:00:38]} 22. Bxe4 {[%clk 0:01:38]}  Bxe4 {[%clk 0:00:36]} 23. Rc5 {[%clk 0:01:37]}  Ra2 {[%clk 0:00:28]} 24. Qxa5 {[%clk 0:01:28]}  Bxc6 {[%clk 0:00:19]} 25. Qb6 {[%clk 0:01:28]}  Rc8 {[%clk 0:00:13]} 26. Rfc1 {[%clk 0:01:28]}  Rxa4 {[%clk 0:00:04]} 27. Rxc6 {[%clk 0:01:28]}  Rxc6 {[%clk 0:00:04]} 28. Qxc6 {[%clk 0:01:29]}  Qxc6 {[%clk 0:00:04]} 29. Rxc6 {[%clk 0:01:29]}  Ra2 {[%clk 0:00:05]} 30. Kg2 {[%clk 0:01:29]}  Rd2 {[%clk 0:00:05]} 31. Kf3 {[%clk 0:01:28]}  g5 {[%clk 0:00:06]} 32. h3 {[%clk 0:01:28]}  h5 {[%clk 0:00:05]} 33. Kg2 {[%clk 0:01:26]}  g4 {[%clk 0:00:05]} 34. h4 {[%clk 0:01:24]}  f6 {[%clk 0:00:04]} 35. Kf1 {[%clk 0:01:24]}  Kg6 {[%clk 0:00:03]} 36. Ke1 {[%clk 0:01:24]}  Ra2 {[%clk 0:00:03]} 37. Rc7 {[%clk 0:01:20]}  f4 {[%clk 0:00:02]} 38. gxf4 {[%clk 0:01:16]}  Kf5 {[%clk 0:00:03]} 39. Kf1 {[%clk 0:01:15]}  Ke4 {[%clk 0:00:03]} 40. Kg2 {[%clk 0:01:16]}  Kf5 {[%clk 0:00:02]} 41. Rc5+ {[%clk 0:01:15]}  Ke4 {[%clk 0:00:02]} 42. Rxh5 {[%clk 0:01:15]}  Kd3 {[%clk 0:00:02]} 43. Rf5 {[%clk 0:01:15]}  Ke2 {[%clk 0:00:03]} 44. Rxf6 {[%clk 0:01:14]}  Ke1 {[%clk 0:00:03]} 45. Kg3 {[%clk 0:01:15]}  Rxf2 {[%clk 0:00:03]} 46. Kxg4 {[%clk 0:01:16]} 1-0


[Site "https://www.chess.com"]

[Event "Titled Tuesday Blitz August 16 Late 2022"]
[White "Goncalves, Davi Sulzbacher"]
[Black "Pinheiro, Iung Alicio de O."]
[WhiteFideId "2154510"]
[BlackFideId "2104350"]
[WhiteElo "2107"]
[BlackElo "2283"]
[Result "1-0"]
[Round "10"]
[TimeControl "180+1"]
[Date "2022.08.16"]
[WhiteClock "0:00:12"]
[BlackClock "0:00:07"]

1. e4 {[%clk 0:02:53]}  c5 {[%clk 0:02:59]} 2. Nf3 {[%clk 0:02:54]}  Nc6 {[%clk 0:02:59]} 3. Bb5 {[%clk 0:02:54]}  e6 {[%clk 0:02:59]} 4. O-O {[%clk 0:02:54]}  Nge7 {[%clk 0:02:59]} 5. c3 {[%clk 0:02:54]}  a6 {[%clk 0:02:57]} 6. Ba4 {[%clk 0:02:53]}  b5 {[%clk 0:02:57]} 7. Bc2 {[%clk 0:02:54]}  Bb7 {[%clk 0:02:57]} 8. Re1 {[%clk 0:02:53]}  Ng6 {[%clk 0:02:54]} 9. d4 {[%clk 0:02:53]}  cxd4 {[%clk 0:02:54]} 10. Nxd4 {[%clk 0:02:51]}  Be7 {[%clk 0:02:23]} 11. Nd2 {[%clk 0:02:08]}  Nxd4 {[%clk 0:02:15]} 12. cxd4 {[%clk 0:02:08]}  Rc8 {[%clk 0:02:16]} 13. Nf3 {[%clk 0:02:07]}  Qc7 {[%clk 0:02:15]} 14. Bd3 {[%clk 0:02:05]}  Nf4 {[%clk 0:02:07]} 15. Bf1 {[%clk 0:02:02]}  O-O {[%clk 0:02:01]} 16. Be3 {[%clk 0:01:55]}  f5 {[%clk 0:01:56]} 17. Rc1 {[%clk 0:01:50]}  Qb8 {[%clk 0:01:55]} 18. Rxc8 {[%clk 0:01:49]}  Bxc8 {[%clk 0:01:55]} 19. e5 {[%clk 0:01:24]}  Nd5 {[%clk 0:01:44]} 20. Bd2 {[%clk 0:01:22]}  Bb7 {[%clk 0:01:44]} 21. g3 {[%clk 0:01:21]}  Nb6 {[%clk 0:01:21]} 22. Bg2 {[%clk 0:01:20]}  Qa8 {[%clk 0:01:20]} 23. b3 {[%clk 0:01:14]}  Nd5 {[%clk 0:01:11]} 24. Qe2 {[%clk 0:01:06]}  Rc8 {[%clk 0:01:08]} 25. Rc1 {[%clk 0:01:05]}  Rf8 {[%clk 0:01:06]} 26. Ba5 {[%clk 0:00:58]}  g5 {[%clk 0:00:54]} 27. Ne1 {[%clk 0:00:57]}  g4 {[%clk 0:00:52]} 28. Qd2 {[%clk 0:00:50]}  Kg7 {[%clk 0:00:50]} 29. Bxd5 {[%clk 0:00:30]}  Bxd5 {[%clk 0:00:50]} 30. Rc7 {[%clk 0:00:29]}  Rd8 {[%clk 0:00:37]} 31. Bb4 {[%clk 0:00:26]}  Bxb4 {[%clk 0:00:15]} 32. Qxb4 {[%clk 0:00:27]}  Kf7 {[%clk 0:00:15]} 33. Qd6 {[%clk 0:00:24]}  Bc6 {[%clk 0:00:15]} 34. d5 {[%clk 0:00:24]}  Bxd5 {[%clk 0:00:13]} 35. Rxd7+ {[%clk 0:00:24]}  Rxd7 {[%clk 0:00:13]} 36. Qxd7+ {[%clk 0:00:25]}  Kg6 {[%clk 0:00:14]} 37. Nd3 {[%clk 0:00:23]}  Qc6 {[%clk 0:00:12]} 38. Nf4+ {[%clk 0:00:21]}  Kh6 {[%clk 0:00:11]} 39. Qxc6 {[%clk 0:00:18]}  Bxc6 {[%clk 0:00:12]} 40. Nxe6 {[%clk 0:00:19]}  Kg6 {[%clk 0:00:12]} 41. Nd4 {[%clk 0:00:16]}  Bd5 {[%clk 0:00:12]} 42. f4 {[%clk 0:00:15]}  gxf3 {[%clk 0:00:11]} 43. Kf2 {[%clk 0:00:16]}  h5 {[%clk 0:00:09]} 44. Nxf3 {[%clk 0:00:15]}  Kf7 {[%clk 0:00:09]} 45. Nd4 {[%clk 0:00:14]}  Be4 {[%clk 0:00:10]} 46. b4 {[%clk 0:00:14]}  Ke7 {[%clk 0:00:09]} 47. a3 {[%clk 0:00:14]}  Kf7 {[%clk 0:00:09]} 48. Ke3 {[%clk 0:00:15]}  Kg6 {[%clk 0:00:09]} 49. Kf4 {[%clk 0:00:15]}  Bb1 {[%clk 0:00:10]} 50. Nf3 {[%clk 0:00:15]}  Bd3 {[%clk 0:00:09]} 51. Nh4+ {[%clk 0:00:15]}  Kf7 {[%clk 0:00:10]} 52. Nxf5 {[%clk 0:00:16]}  Ke6 {[%clk 0:00:11]} 53. Ng7+ {[%clk 0:00:14]}  Kd5 {[%clk 0:00:10]} 54. e6 {[%clk 0:00:12]}  Kc4 {[%clk 0:00:11]} 55. e7 {[%clk 0:00:12]}  Bg6 {[%clk 0:00:11]} 56. Kg5 {[%clk 0:00:12]}  Bf7 {[%clk 0:00:11]} 57. Kf6 {[%clk 0:00:13]}  Be8 {[%clk 0:00:09]} 58. Nxe8 {[%clk 0:00:13]}  Kb3 {[%clk 0:00:10]} 59. Nc7 {[%clk 0:00:13]}  Kxa3 {[%clk 0:00:10]} 60. Nxa6 {[%clk 0:00:14]}  Ka4 {[%clk 0:00:10]} 61. e8=Q {[%clk 0:00:14]}  Kb3 {[%clk 0:00:11]} 62. Qe3+ {[%clk 0:00:14]}  Ka4 {[%clk 0:00:12]} 63. Qd2 {[%clk 0:00:13]}  Kb3 {[%clk 0:00:12]} 64. Ke5 {[%clk 0:00:13]}  Ka3 {[%clk 0:00:11]} 65. Kd4 {[%clk 0:00:12]}  Kb3 {[%clk 0:00:11]} 66. Qc3+ {[%clk 0:00:12]}  Ka2 {[%clk 0:00:09]} 67. Kd3 {[%clk 0:00:12]}  Kb1 {[%clk 0:00:09]} 68. Kd2 {[%clk 0:00:10]}  h4 {[%clk 0:00:07]} 69. Qc2+ {[%clk 0:00:10]}  Ka1 {[%clk 0:00:07]} 70. Kc1 {[%clk 0:00:11]}  hxg3 {[%clk 0:00:07]} 71. Qb2# {[%clk 0:00:12]} 1-0


[Site "https://www.chess.com"]

[Event "Titled Tuesday Blitz August 16 Late 2022"]
[White "Graif, William"]
[Black "Rios Escobar, Adan"]
[WhiteFideId "2609835"]
[BlackFideId "3403645"]
[WhiteElo "1942"]
[BlackElo "2276"]
[Result "1-0"]
[Round "10"]
[TimeControl "180+1"]
[Date "2022.08.18"]
[WhiteClock "0:00:00"]
[BlackClock "0:00:00"]

1. d4 {[%clk 0:00:00]}  Nf6 {[%clk 0:00:00]} 2. Nc3 {[%clk 0:00:00]}  d5 {[%clk 0:00:00]} 3. e4 {[%clk 0:00:00]}  Nxe4 {[%clk 0:00:00]} 4. Nxe4 {[%clk 0:00:00]}  dxe4 {[%clk 0:00:00]} 5. Be3 {[%clk 0:00:00]}  Nd7 {[%clk 0:00:00]} 6. f3 {[%clk 0:00:00]}  exf3 {[%clk 0:00:00]} 7. Nxf3 {[%clk 0:00:00]}  Nf6 {[%clk 0:00:00]} 8. Ne5 {[%clk 0:00:00]}  c6 {[%clk 0:00:00]} 9. Bc4 {[%clk 0:00:00]}  e6 {[%clk 0:00:00]} 10. O-O {[%clk 0:00:00]}  Be7 {[%clk 0:00:00]} 11. Bd3 {[%clk 0:00:00]}  O-O {[%clk 0:00:00]} 12. Qf3 {[%clk 0:00:00]}  Qe8 {[%clk 0:00:00]} 13. Qh3 {[%clk 0:00:00]}  g6 {[%clk 0:00:00]} 14. Rf3 {[%clk 0:00:00]}  Nd7 {[%clk 0:00:00]} 15. Qh6 {[%clk 0:00:00]}  Nxe5 {[%clk 0:00:00]} 16. Rh3 {[%clk 0:00:00]}  Ng4 {[%clk 0:00:00]} 17. Qxh7# {[%clk 0:00:00]} 1-0


[Site "https://www.chess.com"]

[Event "Titled Tuesday Blitz August 16 Late 2022"]
[White "Hoffmann, Asa"]
[Black "Leitao, Rafael"]
[WhiteFideId "2001470"]
[BlackFideId "2101246"]
[WhiteElo "2117"]
[BlackElo "2609"]
[Result "1-0"]
[Round "10"]
[TimeControl "180+1"]
[Date "2022.08.18"]
[WhiteClock "0:00:00"]
[BlackClock "0:00:00"]

1. d4 {[%clk 0:00:00]}  Nf6 {[%clk 0:00:00]} 2. Bg5 {[%clk 0:00:00]}  d5 {[%clk 0:00:00]} 3. e3 {[%clk 0:00:00]}  Nbd7 {[%clk 0:00:00]} 4. f4 {[%clk 0:00:00]}  c5 {[%clk 0:00:00]} 5. c3 {[%clk 0:00:00]}  Qb6 {[%clk 0:00:00]} 6. Qb3 {[%clk 0:00:00]}  Ne4 {[%clk 0:00:00]} 7. Nf3 {[%clk 0:00:00]}  e6 {[%clk 0:00:00]} 8. Bd3 {[%clk 0:00:00]}  Nxg5 {[%clk 0:00:00]} 9. Nxg5 {[%clk 0:00:00]}  h6 {[%clk 0:00:00]} 10. Nf3 {[%clk 0:00:00]}  Bd6 {[%clk 0:00:00]} 11. Nbd2 {[%clk 0:00:00]}  c4 {[%clk 0:00:00]} 12. Qxb6 {[%clk 0:00:00]}  axb6 {[%clk 0:00:00]} 13. Bc2 {[%clk 0:00:00]}  b5 {[%clk 0:00:00]} 14. O-O {[%clk 0:00:00]}  b4 {[%clk 0:00:00]} 15. cxb4 {[%clk 0:00:00]}  Bxb4 {[%clk 0:00:00]} 16. e4 {[%clk 0:00:00]}  Nf6 {[%clk 0:00:00]} 17. e5 {[%clk 0:00:00]}  Ng4 {[%clk 0:00:00]} 18. Rfe1 {[%clk 0:00:00]}  h5 {[%clk 0:00:00]} 19. h3 {[%clk 0:00:00]}  Nh6 {[%clk 0:00:00]} 20. a3 {[%clk 0:00:00]}  Ba5 {[%clk 0:00:00]} 21. Re2 {[%clk 0:00:00]}  Ke7 {[%clk 0:00:00]} 22. Nf1 {[%clk 0:00:00]}  b5 {[%clk 0:00:00]} 23. Ne3 {[%clk 0:00:00]}  b4 {[%clk 0:00:00]} 24. axb4 {[%clk 0:00:00]}  Rb8 {[%clk 0:00:00]} 25. Rxa5 {[%clk 0:00:00]}  Rxb4 {[%clk 0:00:00]} 26. Ra7+ {[%clk 0:00:00]}  Bd7 {[%clk 0:00:00]} 27. f5 {[%clk 0:00:00]}  Rd8 {[%clk 0:00:00]} 28. fxe6 {[%clk 0:00:00]}  fxe6 {[%clk 0:00:00]} 29. Bg6 {[%clk 0:00:00]}  Rdb8 {[%clk 0:00:00]} 30. Nd1 {[%clk 0:00:00]}  Ra4 {[%clk 0:00:00]} 31. Rxa4 {[%clk 0:00:00]}  Bxa4 {[%clk 0:00:00]} 32. Nc3 {[%clk 0:00:00]}  Bd7 {[%clk 0:00:00]} 33. Bxh5 {[%clk 0:00:00]}  Nf5 {[%clk 0:00:00]} 34. Bg4 {[%clk 0:00:00]}  Ng3 {[%clk 0:00:00]} 35. Rd2 {[%clk 0:00:00]}  Ne4 {[%clk 0:00:00]} 36. Nxe4 {[%clk 0:00:00]}  dxe4 {[%clk 0:00:00]} 37. Ng5 {[%clk 0:00:00]}  e3 {[%clk 0:00:00]} 38. Re2 {[%clk 0:00:00]}  Rb3 {[%clk 0:00:00]} 39. Ne4 {[%clk 0:00:00]}  Rd3 {[%clk 0:00:00]} 40. Nc3 {[%clk 0:00:00]}  Bc6 {[%clk 0:00:00]} 41. Kh2 {[%clk 0:00:00]}  Rd2 {[%clk 0:00:00]} 42. Rxd2 {[%clk 0:00:00]}  exd2 {[%clk 0:00:00]} 43. Kg3 {[%clk 0:00:00]}  g5 {[%clk 0:00:00]} 44. Kf2 {[%clk 0:00:00]}  Kf7 {[%clk 0:00:00]} 45. g3 {[%clk 0:00:00]} 1-0


[Site "https://www.chess.com"]

[Event "Titled Tuesday Blitz August 16 Late 2022"]
[White "Ibarra Jerez, Jose Carlos"]
[Black "So, Wesley"]
[WhiteFideId "2226332"]
[BlackFideId "5202213"]
[WhiteElo "2628"]
[BlackElo "2763"]
[Result "0-1"]
[Round "10"]
[TimeControl "180+1"]
[Date "2022.08.16"]
[WhiteClock "0:00:03"]
[BlackClock "0:00:17"]

1. e4 {[%clk 0:03:00]}  c5 {[%clk 0:02:59]} 2. Nc3 {[%clk 0:02:57]}  Nc6 {[%clk 0:02:57]} 3. Nf3 {[%clk 0:02:57]}  g6 {[%clk 0:02:57]} 4. d4 {[%clk 0:02:57]}  cxd4 {[%clk 0:02:58]} 5. Nxd4 {[%clk 0:02:57]}  Bg7 {[%clk 0:02:59]} 6. Be3 {[%clk 0:02:58]}  Nf6 {[%clk 0:02:59]} 7. Bc4 {[%clk 0:02:58]}  Qa5 {[%clk 0:02:58]} 8. O-O {[%clk 0:02:58]}  O-O {[%clk 0:02:57]} 9. Bb3 {[%clk 0:02:58]}  d6 {[%clk 0:02:57]} 10. Nd5 {[%clk 0:02:58]}  Re8 {[%clk 0:02:53]} 11. Nxf6+ {[%clk 0:02:57]}  Bxf6 {[%clk 0:02:53]} 12. c3 {[%clk 0:02:57]}  Bd7 {[%clk 0:02:50]} 13. f4 {[%clk 0:02:57]}  Rac8 {[%clk 0:02:44]} 14. Qf3 {[%clk 0:02:52]}  Bg7 {[%clk 0:02:38]} 15. Rad1 {[%clk 0:02:34]}  Rf8 {[%clk 0:02:30]} 16. Qf2 {[%clk 0:02:12]}  Qa6 {[%clk 0:02:21]} 17. Nxc6 {[%clk 0:01:50]}  Bxc6 {[%clk 0:02:21]} 18. Bd4 {[%clk 0:01:51]}  Rce8 {[%clk 0:01:42]} 19. e5 {[%clk 0:01:32]}  Bb5 {[%clk 0:01:08]} 20. Rfe1 {[%clk 0:01:17]}  dxe5 {[%clk 0:01:08]} 21. Bxe5 {[%clk 0:01:09]}  e6 {[%clk 0:01:06]} 22. Bd6 {[%clk 0:00:58]}  Rc8 {[%clk 0:01:04]} 23. Bxf8 {[%clk 0:00:58]}  Bxf8 {[%clk 0:01:05]} 24. Kh1 {[%clk 0:00:50]}  b6 {[%clk 0:01:03]} 25. h3 {[%clk 0:00:48]}  Bc6 {[%clk 0:00:57]} 26. Kh2 {[%clk 0:00:46]}  Qb7 {[%clk 0:00:56]} 27. Rd2 {[%clk 0:00:36]}  Bc5 {[%clk 0:00:50]} 28. Qh4 {[%clk 0:00:36]}  Be7 {[%clk 0:00:50]} 29. Qf2 {[%clk 0:00:36]}  Bc5 {[%clk 0:00:50]} 30. Qh4 {[%clk 0:00:35]}  Be7 {[%clk 0:00:50]} 31. Qf2 {[%clk 0:00:25]}  Qc7 {[%clk 0:00:49]} 32. Qg3 {[%clk 0:00:20]}  Kg7 {[%clk 0:00:48]} 33. Qe3 {[%clk 0:00:19]}  Bf6 {[%clk 0:00:42]} 34. Bd1 {[%clk 0:00:19]}  h5 {[%clk 0:00:39]} 35. Bf3 {[%clk 0:00:19]}  Bb5 {[%clk 0:00:35]} 36. Be4 {[%clk 0:00:18]}  h4 {[%clk 0:00:34]} 37. Red1 {[%clk 0:00:16]}  g5 {[%clk 0:00:33]} 38. Kh1 {[%clk 0:00:13]}  Qxf4 {[%clk 0:00:30]} 39. Qxf4 {[%clk 0:00:13]}  gxf4 {[%clk 0:00:31]} 40. Bf3 {[%clk 0:00:11]}  Be7 {[%clk 0:00:27]} 41. Kh2 {[%clk 0:00:11]}  f5 {[%clk 0:00:26]} 42. Re1 {[%clk 0:00:08]}  Kf6 {[%clk 0:00:25]} 43. Be2 {[%clk 0:00:08]}  Bc6 {[%clk 0:00:23]} 44. Bc4 {[%clk 0:00:06]}  e5 {[%clk 0:00:23]} 45. Bd5 {[%clk 0:00:04]}  Be8 {[%clk 0:00:23]} 46. Rde2 {[%clk 0:00:03]}  Bd6 {[%clk 0:00:21]} 47. c4 {[%clk 0:00:03]}  e4 {[%clk 0:00:21]} 48. Kh1 {[%clk 0:00:03]}  Bh5 {[%clk 0:00:20]} 49. Rf2 {[%clk 0:00:03]}  Ke5 {[%clk 0:00:19]} 50. Rd2 {[%clk 0:00:03]}  Bb4 {[%clk 0:00:19]} 51. Rde2 {[%clk 0:00:02]}  f3 {[%clk 0:00:17]} 52. gxf3 {[%clk 0:00:02]}  Bxf3+ {[%clk 0:00:18]} 53. Kh2 {[%clk 0:00:02]}  Bxe1 {[%clk 0:00:16]} 54. Rxe1 {[%clk 0:00:02]}  b5 {[%clk 0:00:17]} 55. b3 {[%clk 0:00:02]}  bxc4 {[%clk 0:00:17]} 56. Bxc4 {[%clk 0:00:03]}  Rd8 {[%clk 0:00:17]} 0-1


[Site "https://www.chess.com"]

[Event "Titled Tuesday Blitz August 16 Late 2022"]
[White "Janaszak, Dawid"]
[Black "Pakleza, Zbigniew"]
[WhiteFideId "1119206"]
[BlackFideId "1119290"]
[WhiteElo "2165"]
[BlackElo "2411"]
[Result "0-1"]
[Round "10"]
[TimeControl "180+1"]
[Date "2022.08.16"]
[WhiteClock "0:00:35"]
[BlackClock "0:01:28"]

1. d4 {[%clk 0:03:00]}  d6 {[%clk 0:02:59]} 2. Bg5 {[%clk 0:02:58]}  Nd7 {[%clk 0:02:56]} 3. Nc3 {[%clk 0:02:57]}  c6 {[%clk 0:02:52]} 4. e4 {[%clk 0:02:55]}  Qb6 {[%clk 0:02:51]} 5. Rb1 {[%clk 0:02:48]}  e5 {[%clk 0:02:49]} 6. Nf3 {[%clk 0:02:47]}  Be7 {[%clk 0:02:48]} 7. Be3 {[%clk 0:02:46]}  Qc7 {[%clk 0:02:48]} 8. a4 {[%clk 0:02:42]}  Ngf6 {[%clk 0:02:46]} 9. h3 {[%clk 0:02:40]}  O-O {[%clk 0:02:45]} 10. Be2 {[%clk 0:02:33]}  a6 {[%clk 0:02:44]} 11. O-O {[%clk 0:02:32]}  b5 {[%clk 0:02:43]} 12. dxe5 {[%clk 0:02:10]}  dxe5 {[%clk 0:02:40]} 13. Nh4 {[%clk 0:02:01]}  Nc5 {[%clk 0:02:31]} 14. axb5 {[%clk 0:01:57]}  axb5 {[%clk 0:02:20]} 15. Bxc5 {[%clk 0:01:17]}  Bxc5 {[%clk 0:02:18]} 16. Bd3 {[%clk 0:01:16]}  g6 {[%clk 0:01:48]} 17. Qf3 {[%clk 0:01:11]}  Nh5 {[%clk 0:01:44]} 18. Rfd1 {[%clk 0:01:03]}  Nf4 {[%clk 0:01:35]} 19. Bf1 {[%clk 0:01:02]}  Qe7 {[%clk 0:01:35]} 20. Qg3 {[%clk 0:00:48]}  Nh5 {[%clk 0:01:28]} 21. Nf5 {[%clk 0:00:35]}  Bxf5 {[%clk 0:01:28]} 0-1


[Site "https://www.chess.com"]

[Event "Titled Tuesday Blitz August 16 Late 2022"]
[White "Kaganskiy, Gleb"]
[Black "Mickiewicz, Piotr"]
[WhiteFideId "4132025"]
[BlackFideId "1114891"]
[WhiteElo "2165"]
[BlackElo "2266"]
[Result "0-1"]
[Round "10"]
[TimeControl "180+1"]
[Date "2022.08.18"]
[WhiteClock "0:00:00"]
[BlackClock "0:00:00"]

1. e4 {[%clk 0:00:00]}  c5 {[%clk 0:00:00]} 2. Nf3 {[%clk 0:00:00]}  Nc6 {[%clk 0:00:00]} 3. Bb5 {[%clk 0:00:00]}  g6 {[%clk 0:00:00]} 4. Bxc6 {[%clk 0:00:00]}  bxc6 {[%clk 0:00:00]} 5. O-O {[%clk 0:00:00]}  Bg7 {[%clk 0:00:00]} 6. Re1 {[%clk 0:00:00]}  Nh6 {[%clk 0:00:00]} 7. c3 {[%clk 0:00:00]}  O-O {[%clk 0:00:00]} 8. d4 {[%clk 0:00:00]}  cxd4 {[%clk 0:00:00]} 9. cxd4 {[%clk 0:00:00]}  d5 {[%clk 0:00:00]} 10. e5 {[%clk 0:00:00]}  Bg4 {[%clk 0:00:00]} 11. h3 {[%clk 0:00:00]}  Bxf3 {[%clk 0:00:00]} 12. Qxf3 {[%clk 0:00:00]}  Nf5 {[%clk 0:00:00]} 13. Be3 {[%clk 0:00:00]}  Qb6 {[%clk 0:00:00]} 14. b3 {[%clk 0:00:00]}  Nxd4 {[%clk 0:00:00]} 15. Qd1 {[%clk 0:00:00]}  c5 {[%clk 0:00:00]} 16. Nc3 {[%clk 0:00:00]}  e6 {[%clk 0:00:00]} 17. Na4 {[%clk 0:00:00]}  Qb4 {[%clk 0:00:00]} 18. Nxc5 {[%clk 0:00:00]}  Qxc5 {[%clk 0:00:00]} 19. Qxd4 {[%clk 0:00:00]}  Qe7 {[%clk 0:00:00]} 20. f4 {[%clk 0:00:00]}  f6 {[%clk 0:00:00]} 21. Rec1 {[%clk 0:00:00]}  fxe5 {[%clk 0:00:00]} 22. fxe5 {[%clk 0:00:00]}  Rf5 {[%clk 0:00:00]} 23. Rc6 {[%clk 0:00:00]}  Bxe5 {[%clk 0:00:00]} 24. Qg4 {[%clk 0:00:00]}  Bxa1 {[%clk 0:00:00]} 25. Bc5 {[%clk 0:00:00]}  Qf7 {[%clk 0:00:00]} 26. Kh2 {[%clk 0:00:00]}  Be5+ {[%clk 0:00:00]} 0-1


[Site "https://www.chess.com"]